fUST/lending_fUST_20250402
["ID","MTS","AMOUNT","RATE_DAILY","PERIOD"]
[357006238,1743573038924,-500.0,0.00019887,2]
[357006239,1743573038934,-500.0,0.00019887,2]
[357006240,1743573038944,-500.0,0.00019887,2]
[357006241,1743573038954,-500.0,0.00019887,2]
[357006242,1743573038964,-500.0,0.00019887,2]
[357006243,1743573038974,-500.0,0.00019887,2]
[357006244,1743573038983,-500.0,0.00019887,2]
[357006245,1743573038993,-500.0,0.00019887,2]
[357006246,1743573039002,-527.40985493,0.00019887,2]
[357006247,1743573039011,-572.76,0.00019887,2]
[357006248,1743573039020,-391.61400628,0.00019887,2]
[357006249,1743573039030,-500.0,0.00019887,2]
[357006250,1743573039040,-500.0,0.00019887,2]
[357006251,1743573039049,-500.0,0.00019887,2]
[357006252,1743573039058,-500.0,0.00019887,2]
[357006253,1743573039067,-253.06157687,0.00019887,2]
[357006254,1743573039077,-500.0,0.00019887,2]
[357006255,1743573039086,-500.0,0.00019887,2]
[357006256,1743573039095,-500.0,0.00019887,2]
[357006257,1743573039105,-500.0,0.00019887,2]
[357006258,1743573039114,-549.92762833,0.00019887,2]
[357006259,1743573039123,-500.0,0.00019887,2]
[357006260,1743573039133,-500.0,0.00019887,2]
[357006261,1743573039142,-500.0,0.00019887,2]
[357006262,1743573039151,-500.0,0.00019887,2]
[357006263,1743573039160,-500.0,0.00019887,2]
[357006264,1743573039170,-333.35918418,0.00019887,2]
[357006265,1743573039179,-500.0,0.00019887,2]
[357006266,1743573039188,-500.0,0.00019887,2]
[357006267,1743573039197,-500.0,0.00019887,2]
[357006268,1743573039207,-500.0,0.00019887,2]
[357006269,1743573039216,-500.0,0.00019887,2]
[357006270,1743573039225,-500.0,0.00019887,2]
[357006271,1743573039234,-532.93046975,0.00019887,2]
[357006272,1743573039243,-500.0,0.00019887,2]
[357006273,1743573039252,-500.0,0.00019887,2]
[357006274,1743573039261,-500.0,0.00019887,2]
[357006275,1743573039271,-500.0,0.00019887,2]
[357006276,1743573039281,-500.0,0.00019887,2]
[357006277,1743573039290,-500.0,0.00019887,2]
[357006278,1743573039299,-500.0,0.00019887,2]
[357006279,1743573039308,-500.0,0.00019887,2]
[357006280,1743573039317,-500.0,0.00019887,2]
[357006281,1743573039326,-500.0,0.00019887,2]
[357006282,1743573039336,-500.0,0.00019887,2]
[357006283,1743573039345,-500.0,0.00019887,2]
[357006284,1743573039354,-500.0,0.00019887,2]
[357006285,1743573039363,-500.0,0.00019887,2]
[357006286,1743573039373,-500.0,0.00019887,2]
[357006287,1743573039382,-500.0,0.00019887,2]
[357006288,1743573039392,-500.0,0.00019887,2]
[357006289,1743573039401,-500.0,0.00019887,2]
[357006290,1743573039411,-500.0,0.00019887,2]
[357006291,1743573039420,-500.0,0.00019887,2]
[357006292,1743573039430,-283.38404974,0.00019887,2]
[357006293,1743573039440,-500.0,0.00019887,2]
[357006294,1743573039451,-500.0,0.00019887,2]
[357006295,1743573039462,-421.1,0.0001989,2]
[357006296,1743573039472,-500.0,0.0001989,2]
[357006297,1743573039481,-652.55,0.0001989,2]
[357006298,1743573039491,-907.87,0.0001989,2]
[357006299,1743573039501,-500.0,0.0001989,2]
[357006300,1743573039511,-500.0,0.0001989,2]
[357006301,1743573039522,-500.0,0.0001989,2]
[357006302,1743573039532,-500.0,0.0001989,2]
[357006303,1743573039542,-500.0,0.0001989,2]
[357006304,1743573039551,-500.0,0.0001989,2]
[357006305,1743573039560,-1526.43,0.0001989,2]
[357006306,1743573039570,-500.0,0.0001989,2]
[357006307,1743573039580,-656.93,0.0001989,2]
[357006308,1743573039591,-500.0,0.0001989,2]
[357006309,1743573039601,-500.0,0.0001989,2]
[357006310,1743573039611,-2963.96,0.0001989,2]
[357006311,1743573039621,-163.51,0.0001989,3]
[357006312,1743573039633,-1422.841715,0.000199,2]
[357006313,1743573039642,-6215.57387587,0.000199,2]
[357006314,1743573039655,-3126.57218539,0.000199,2]
[357006315,1743573039664,-419.02799708,0.0001997,2]
[357006316,1743573039675,-152.0,0.00019983,2]
[357006317,1743573039684,-500.0,0.00019998,2]
[357006318,1743573039693,-500.0,0.00019998,2]
[357006319,1743573039703,-500.0,0.00019998,2]
[357006320,1743573039712,-500.0,0.00019998,2]
[357006321,1743573039722,-500.0,0.00019998,2]
[357006322,1743573039731,-500.0,0.00019998,2]
[357006323,1743573039740,-500.0,0.00019998,2]
[357006324,1743573039750,-500.0,0.00019998,2]
[357006325,1743573039759,-500.0,0.00019998,2]
[357006326,1743573039768,-500.0,0.00019998,2]
[357006327,1743573039778,-500.0,0.00019998,2]
[357006328,1743573039788,-500.0,0.00019998,2]
[357006329,1743573039797,-616.04632118,0.00019998,2]
[357006330,1743573039807,-439.3034622,0.00019998,2]
[357006331,1743573039816,-500.0,0.00019998,2]
[357006332,1743573039825,-500.0,0.00019998,2]
[357006333,1743573039836,-220.19,0.00019998,2]
[357006334,1743573039846,-419.83099159,0.00019998,2]
[357006335,1743573039855,-500.0,0.00019998,2]
[357006336,1743573039865,-500.0,0.00019998,2]
[357006337,1743573039874,-500.0,0.00019998,2]
[357006338,1743573039884,-500.0,0.00019998,2]
[357006339,1743573039894,-64.39359443,0.00019998,2]
[357006341,1743573040050,-435.60640557,0.00019998,2]
[357006342,1743573040060,-507.23979845,0.00019998,2]
[357006343,1743573040071,-500.0,0.00019998,2]
[357006344,1743573040081,-500.0,0.00019998,2]
[357006345,1743573040091,-500.0,0.00019998,2]
[357006346,1743573040100,-2929.57,0.00019998,2]
[357006347,1743573040110,-500.0,0.00019998,2]
[357006348,1743573040119,-500.0,0.00019998,2]
[357006349,1743573040129,-500.0,0.00019998,2]
[357006350,1743573040139,-500.0,0.00019998,2]
[357006351,1743573040148,-525.03,0.00019998,2]
[357006353,1743573040158,-546.84366385,0.00019998,2]
[357006354,1743573040168,-500.0,0.00019998,2]
[357006355,1743573040177,-500.0,0.00019998,2]
[357006356,1743573040187,-538.7,0.00019998,2]
[357006357,1743573040196,-384.58574988,0.00019998,2]
[357006358,1743573040206,-500.0,0.00019998,2]
[357006359,1743573040216,-500.0,0.00019998,2]
[357006360,1743573040226,-500.0,0.00019998,2]
[357006361,1743573040235,-500.0,0.00019998,2]
[357006362,1743573040245,-368.88738251,0.00019998,2]
[357006363,1743573040262,-131.11261749,0.00019998,2]
[357006364,1743573040272,-500.0,0.00019998,2]
[357006365,1743573040282,-500.0,0.00019998,2]
[357006366,1743573040291,-507.44633644,0.00019998,2]
[357006367,1743573040300,-500.0,0.00019998,2]
[357006368,1743573040310,-500.0,0.00019998,2]
[357006369,1743573040319,-500.0,0.00019998,2]
[357006370,1743573040329,-593.97,0.00019998,2]
[357006371,1743573040338,-500.0,0.00019998,2]
[357006372,1743573040347,-500.0,0.00019998,2]
[357006373,1743573040356,-51286.28042188,0.0002,2]
[357006374,1743573040365,-244.55937093,0.00020069,2]
[357006375,1743573040375,-1121.01,0.00020155,2]
[357006376,1743573040384,-359.6344337,0.00020155,2]
[357006377,1743573040393,-523.64,0.00020155,2]
[357006378,1743573040403,-500.0,0.00020155,2]
[357006379,1743573040412,-590.39,0.00020155,2]
[357006380,1743573040421,-10332.79,0.00020158,2]
[357006381,1743573040430,-500.0,0.00020158,2]
[357006382,1743573040439,-2332.61289844,0.00020158,2]
[357006383,1743573040452,-2083.47710156,0.00020158,2]
[357006384,1743573040462,-500.0,0.00020158,2]
[357006385,1743573040471,-500.0,0.00020158,2]
[357006386,1743573040480,-498.18103102,0.00020161,2]
[357006387,1743573040489,-296.39,0.00020161,2]
[357006388,1743573040499,-500.0,0.00020161,2]
[357006389,1743573040508,-544.6415922,0.00020164,2]
[357006390,1743573040519,-652.55,0.00020164,2]
[357006391,1743573040530,-907.87,0.00020164,2]
[357006392,1743573040539,-500.0,0.00020164,2]
[357006393,1743573040550,-500.0,0.00020164,2]
[357006395,1743573040559,-500.0,0.00020164,2]
[357006397,1743573040569,-500.0,0.00020164,2]
[357006399,1743573040578,-500.0,0.00020164,2]
[357006401,1743573040587,-500.0,0.00020164,2]
[357006402,1743573040596,-1526.43,0.00020164,2]
[357006403,1743573040605,-500.0,0.00020164,2]
[357006404,1743573040615,-656.93,0.00020164,2]
[357006405,1743573040624,-500.0,0.00020164,2]
[357006406,1743573040638,-500.0,0.00020164,2]
[357006407,1743573040647,-2963.96,0.00020164,2]
[357006408,1743573040656,-236.37253452,0.00020272,3]
[357006409,1743573040665,-500.0,0.00020272,2]
[357006410,1743573040675,-500.0,0.00020272,2]
[357006411,1743573040684,-512.88112468,0.00020272,2]
[357006412,1743573040693,-500.0,0.00020272,2]
[357006413,1743573040702,-500.0,0.00020272,2]
[357006414,1743573040713,-500.0,0.00020272,2]
[357006415,1743573040723,-500.0,0.00020272,2]
[357006417,1743573040732,-174.38458128,0.00020272,2]
[357006418,1743573040741,-500.0,0.00020272,2]
[357006419,1743573040750,-500.0,0.00020272,2]
[357006420,1743573040760,-503.81,0.00020272,2]
[357006421,1743573040769,-500.0,0.00020272,2]
[357006422,1743573040778,-500.0,0.00020272,2]
[357006423,1743573040787,-500.0,0.00020272,2]
[357006424,1743573040797,-2929.57,0.00020272,2]
[357006425,1743573040807,-162.68052209,0.00020272,2]
[357006426,1743573040816,-330.77,0.00020272,2]
[357006427,1743573040825,-500.0,0.00020272,2]
[357006429,1743573040834,-290.87913416,0.00020272,2]
[357006430,1743573040844,-500.0,0.00020272,2]
[357006431,1743573040853,-500.0,0.00020272,2]
[357006432,1743573040862,-500.0,0.00020272,2]
[357006433,1743573040872,-500.0,0.00020272,2]
[357006434,1743573040881,-155.730029,0.00020295,3]
[357006435,1743573040891,-217.0831792,0.000203,2]
[357006437,1743573040900,-500.0,0.00020321,2]
[357006439,1743573040910,-200.0,0.00020325,2]
[357006440,1743573040920,-109476.96891547,0.00020337,2]
[357006441,1743573040930,-281.71379,0.00020337,2]
[357006442,1743573040939,-151.0,0.00020337,2]
[357006443,1743573040950,-172.6294219,0.0002037,2]
[357006444,1743573040959,-9342.14606102,0.00020417,2]
[357006445,1743573040968,-1121.01,0.00020429,2]
[357006446,1743573040978,-523.64,0.00020429,2]
[357006447,1743573040987,-500.0,0.00020429,2]
[357006448,1743573040997,-10332.79,0.00020432,2]
[357006449,1743573041006,-500.0,0.00020432,2]
[357006450,1743573041015,-4416.09,0.00020432,2]
[357006451,1743573041025,-192.0,0.00020432,2]
[357006452,1743573041034,-500.0,0.00020432,2]
[357006453,1743573041044,-500.0,0.00020432,2]
[357006454,1743573041053,-500.0,0.00020435,2]
[357006455,1743573041062,-500.0,0.00020435,2]
[357006456,1743573041072,-647.05839893,0.00020435,2]
[357006457,1743573041081,-500.0,0.00020435,2]
[357006458,1743573041091,-500.0,0.00020435,2]
[357006459,1743573041101,-500.0,0.00020435,2]
[357006460,1743573041110,-395.40161328,0.00020435,2]
[357006461,1743573041119,-500.0,0.00020435,2]
[357006462,1743573041129,-500.0,0.00020435,2]
[357006463,1743573041138,-500.0,0.00020435,2]
[357006464,1743573041148,-500.0,0.00020435,2]
[357006465,1743573041157,-500.0,0.00020435,2]
[357006466,1743573041166,-500.0,0.00020435,2]
[357006467,1743573041176,-500.0,0.00020435,2]
[357006468,1743573041185,-500.0,0.00020435,2]
[357006469,1743573041195,-494.26175614,0.00020435,2]
[357006470,1743573041204,-196.13708759,0.00020435,2]
[357006471,1743573041213,-500.0,0.00020435,2]
[357006472,1743573041223,-500.0,0.00020435,2]
[357006473,1743573041232,-500.0,0.00020435,2]
[357006474,1743573041241,-500.0,0.00020435,2]
[357006475,1743573041250,-899.37,0.00020435,2]
[357006476,1743573041259,-503.5671291,0.00020435,2]
[357006477,1743573041269,-500.0,0.00020435,2]
[357006478,1743573041278,-500.0,0.00020435,2]
[357006479,1743573041287,-500.0,0.00020435,2]
[357006480,1743573041297,-500.0,0.00020435,2]
[357006481,1743573041306,-500.0,0.00020435,2]
[357006482,1743573041315,-500.0,0.00020435,2]
[357006483,1743573041325,-48.05943611,0.00020435,2]
[357006484,1743573041339,-451.94056389,0.00020435,2]
[357006485,1743573041348,-127.61443511,0.00020435,2]
[357006486,1743573041543,-597.95323649,0.00019998,2]
[357006487,1743573041554,-2183.42676351,0.00019998,2]
[357006488,1743573041563,-2331.61655125,0.00020272,2]
[357006492,1743573043353,-449.76344875,0.00020272,2]
[357006494,1743573043363,-590.39,0.00020429,2]
[357006496,1743573043372,-500.0,0.00020435,2]
[357006498,1743573043382,-500.0,0.00020435,2]
[357006499,1743573043391,-507.86309399,0.00020435,2]
[357006500,1743573043400,-565.56064949,0.00020435,2]
[357006501,1743573043409,-490.0,0.00020435,2]
[357006503,1743573043419,-500.0,0.00020435,2]
[357006505,1743573043428,-503.95134831,0.00020435,2]
[357006507,1743573043437,-213.43034153,0.00020435,2]
[357006552,1743573043856,-500.0,0.00019998,2]
[357006553,1743573043866,-500.0,0.00020272,2]
[357006554,1743573043875,-335.0711239,0.00020435,2]
[357006555,1743573043884,-564.2408194,0.00020435,2]
[357006556,1743573043893,-526.30050069,0.00020435,2]
[357006557,1743573043901,-500.0,0.00020435,2]
[357006558,1743573043910,-346.70753606,0.00020435,2]
[357006559,1743573043919,-506.2500431,0.00020435,2]
[357006560,1743573043928,-500.0,0.00020435,2]
[357006561,1743573043937,-512.4382182,0.00020435,2]
[357006562,1743573043946,-604.36846882,0.00020435,2]
[357006563,1743573043955,-510.12477193,0.00020435,2]
[357006564,1743573043963,-533.61604109,0.00020435,2]
[357006565,1743573043973,-500.0,0.00020435,2]
[357006566,1743573043982,-500.0,0.00020435,2]
[357006568,1743573043991,-500.0,0.00020435,2]
[357006569,1743573044000,-500.0,0.00020435,2]
[357006571,1743573044009,-500.0,0.00020435,2]
[357006573,1743573044019,-500.0,0.00020435,2]
[357006575,1743573044027,-500.0,0.00020435,2]
[357006577,1743573044038,-500.0,0.00020435,2]
[357006579,1743573044047,-500.0,0.00020435,2]
[357006582,1743573044057,-522.06,0.00020435,2]
[357006584,1743573044066,-500.0,0.00020435,2]
[357006586,1743573044075,-500.0,0.00020435,2]
[357006587,1743573044085,-526.07,0.00020435,2]
[357006589,1743573044094,-500.0,0.00020435,2]
[357006592,1743573044103,-500.0,0.00020435,2]
[357006594,1743573044113,-151.0,0.00020435,2]
[357006595,1743573044122,-151.0,0.00020435,2]
[357006597,1743573044131,-151.0,0.00020435,2]
[357006600,1743573044140,-500.0,0.00020435,2]
[357006602,1743573044150,-500.0,0.00020438,2]
[357006603,1743573044159,-500.0,0.00020438,2]
[357006605,1743573044168,-500.0,0.00020438,2]
[357006607,1743573044177,-500.0,0.00020438,2]
[357006609,1743573044187,-500.0,0.00020438,2]
[357006611,1743573044196,-502.68533164,0.00020438,2]
[357006614,1743573044205,-500.0,0.00020438,2]
[357006616,1743573044215,-500.0,0.00020438,2]
[357006617,1743573044224,-500.0,0.00020438,2]
[357006620,1743573044234,-500.0,0.00020438,2]
[357006622,1743573044243,-500.0,0.00020438,2]
[357006623,1743573044252,-500.0,0.00020438,2]
[357006626,1743573044261,-500.0,0.00020438,2]
[357006627,1743573044271,-500.0,0.00020438,2]
[357006629,1743573044280,-500.0,0.00020438,2]
[357006632,1743573044290,-500.0,0.00020438,2]
[357006634,1743573044299,-652.55,0.00020438,2]
[357006636,1743573044308,-907.87,0.00020438,2]
[357006637,1743573044317,-151.0,0.00020438,2]
[357006639,1743573044327,-500.0,0.00020438,2]
[357006642,1743573044336,-500.0,0.00020438,2]
[357006643,1743573044346,-151.0,0.00020438,2]
[357006645,1743573044355,-500.0,0.00020438,2]
[357006648,1743573044364,-500.0,0.00020438,2]
[357006649,1743573044373,-500.0,0.00020438,2]
[357006652,1743573044383,-500.0,0.00020438,2]
[357006654,1743573044392,-1526.43,0.00020438,2]
[357006656,1743573044401,-500.0,0.00020438,2]
[357006658,1743573044410,-656.93,0.00020438,2]
[357006660,1743573044420,-500.0,0.00020438,2]
[357006662,1743573044429,-500.0,0.00020438,2]
[357006664,1743573044438,-151.0,0.00020438,2]
[357006666,1743573044447,-2963.96,0.00020438,2]
[357006668,1743573044456,-500.0,0.00020546,2]
[357006670,1743573044465,-500.0,0.00020546,2]
[357006672,1743573044474,-500.0,0.00020546,2]
[357006674,1743573044483,-585.17435429,0.00020546,2]
[357006676,1743573044492,-506.20175051,0.00020546,2]
[357006678,1743573044502,-500.0,0.00020546,2]
[357006680,1743573044511,-2929.57,0.00020546,2]
[357006682,1743573044520,-257.29367543,0.00020546,2]
[357006684,1743573044530,-620.47253926,0.00020546,2]
[357006686,1743573044539,-500.0,0.00020546,2]
[357006688,1743573044548,-500.0,0.00020546,2]
[357006690,1743573044557,-267.55306344,0.00020546,2]
[357006692,1743573044567,-2781.38,0.00020546,2]
[357006694,1743573044576,-155.730029,0.0002068,14]
[357006696,1743573044585,-500.0,0.00020698,2]
[357006698,1743573044594,-1121.01,0.00020703,2]
[357006700,1743573044603,-523.64,0.00020703,2]
[357006702,1743573044612,-500.0,0.00020703,2]
[357006704,1743573044621,-590.39,0.00020703,2]
[357006706,1743573044633,-10332.79,0.00020706,2]
[357006708,1743573044642,-500.0,0.00020706,2]
[357006710,1743573044651,-4416.09,0.00020706,2]
[357006712,1743573044660,-500.0,0.00020706,2]
[357006714,1743573044671,-500.0,0.00020706,2]
[357006716,1743573044680,-500.0,0.00020709,2]
[357006718,1743573044689,-510.37138212,0.00020709,2]
[357006720,1743573044699,-500.0,0.00020709,2]
[357006722,1743573044708,-500.0,0.00020709,2]
[357006724,1743573044718,-500.0,0.00020709,2]
[357006726,1743573044728,-500.0,0.00020709,2]
[357006728,1743573044737,-593.06566166,0.00020709,2]
[357006730,1743573044747,-500.0,0.00020709,2]
[357006732,1743573044756,-505.23940601,0.00020709,2]
[357006734,1743573044765,-500.0,0.00020709,2]
[357006736,1743573044774,-899.37,0.00020709,2]
[357006738,1743573044784,-500.0,0.00020709,2]
[357006740,1743573044793,-500.0,0.00020709,2]
[357006742,1743573044803,-513.70935997,0.00020709,2]
[357006744,1743573044811,-500.0,0.00020709,2]
[357006746,1743573044821,-500.0,0.00020709,2]
[357006748,1743573044830,-500.0,0.00020709,2]
[357006750,1743573044839,-500.0,0.00020709,2]
[357006752,1743573044848,-500.0,0.00020709,2]
[357006754,1743573044857,-500.0,0.00020709,2]
[357006756,1743573044867,-518.85873204,0.00020709,2]
[357006758,1743573044877,-266.09685154,0.00020709,2]
[357006760,1743573044886,-500.0,0.00020709,2]
[357006762,1743573044897,-500.0,0.00020709,2]
[357006764,1743573044906,-500.0,0.00020709,2]
[357006766,1743573044915,-500.0,0.00020709,2]
[357006768,1743573044923,-518.5,0.00020709,2]
[357006781,1743573045041,-500.0,0.00020709,2]
[357006784,1743573045051,-163.20345952,0.00020709,2]
[357006786,1743573045061,-151.0,0.0002071,2]
[357006788,1743573045070,-151.0,0.0002071,2]
[357006790,1743573045079,-151.0,0.0002071,2]
[357006792,1743573045088,-500.0,0.00020712,2]
[357006794,1743573045098,-487.35179608,0.00020712,2]
[357006796,1743573045106,-500.0,0.00020712,2]
[357006798,1743573045115,-652.55,0.00020712,2]
[357006800,1743573045125,-907.87,0.00020712,2]
[357006802,1743573045134,-500.0,0.00020712,2]
[357006804,1743573045143,-500.0,0.00020712,2]
[357006806,1743573045152,-500.0,0.00020712,2]
[357006808,1743573045161,-500.0,0.00020712,2]
[357006810,1743573045170,-394.80474856,0.00020712,2]
[357006812,1743573045179,-311.32587664,0.00020712,2]
[357006814,1743573045188,-1526.43,0.00020712,2]
[357006816,1743573045197,-500.0,0.00020712,2]
[357006818,1743573045206,-656.93,0.00020712,2]
[357006820,1743573045215,-500.0,0.00020712,2]
[357006822,1743573045224,-500.0,0.00020712,2]
[357006824,1743573045233,-2963.96,0.00020712,2]
[357006826,1743573045242,-500.0,0.00020736,2]
[357006828,1743573045252,-500.0,0.00020736,2]
[357006829,1743573045261,-500.0,0.00020736,2]
[357006832,1743573045271,-505.26690015,0.00020736,2]
[357006834,1743573045280,-501.83857914,0.00020736,2]
[357006835,1743573045290,-500.0,0.00020736,2]
[357006838,1743573045301,-500.0,0.00020736,2]
[357006840,1743573045310,-500.0,0.00020736,2]
[357006842,1743573045319,-4.54075641,0.00020736,2]
[357006854,1743573045424,-500.0,0.00020546,2]
[357006856,1743573045434,-411.49283736,0.00020736,2]
[357006858,1743573045445,-83.96640623,0.00020736,2]
[357006860,1743573045453,-500.0,0.00020736,2]
[357006862,1743573045463,-500.0,0.00020736,2]
[357006864,1743573045472,-645.7838626,0.00020736,2]
[357006866,1743573045481,-500.0,0.0002082,2]
[357006868,1743573045491,-500.0,0.0002082,2]
[357006870,1743573045499,-500.0,0.0002082,2]
[357006872,1743573045508,-500.0,0.0002082,2]
[357006874,1743573045517,-828.70300741,0.0002082,2]
[357006909,1743573046841,-500.0,0.0001989,2]
[357006910,1743573046851,-711.74154705,0.0002082,2]
[357006916,1743573693299,176.672047,0.00013699,2]
[357006968,1743574231904,-637.08162732,0.00018776,2]
[357006976,1743574231963,-1362.91837268,0.00018776,2]
[357006978,1743574231973,-300.0,0.00018776,2]
[357006980,1743574231983,-11470.4250182,0.00018777,2]
[357006982,1743574231992,-500.0,0.00018784,2]
[357006984,1743574232002,-500.0,0.00018784,2]
[357006986,1743574232013,-500.0,0.00018784,2]
[357006988,1743574232023,-500.0,0.00018784,2]
[357006990,1743574232033,-500.0,0.00018784,2]
[357006992,1743574232042,-500.0,0.00018784,2]
[357006994,1743574232052,-500.0,0.00018784,2]
[357006996,1743574232062,-500.0,0.00018784,2]
[357006998,1743574232071,-500.0,0.00018784,2]
[357007000,1743574232080,-500.0,0.00018784,2]
[357007002,1743574232091,-500.0,0.00018784,2]
[357007004,1743574232100,-500.0,0.00018784,2]
[357007006,1743574232110,-500.0,0.00018784,2]
[357007008,1743574232119,-500.0,0.00018784,2]
[357007010,1743574232129,-500.0,0.00018784,2]
[357007014,1743574232139,-500.0,0.00018784,2]
[357007017,1743574232148,-500.0,0.00018784,2]
[357007020,1743574232158,-496.66750835,0.00018784,2]
[357007023,1743574232168,-201.10709607,0.00018784,2]
[357007026,1743574232178,-500.0,0.00018784,2]
[357007029,1743574232188,-581.50088872,0.00018784,2]
[357007032,1743574232197,-500.0,0.00018784,2]
[357007035,1743574232207,-500.0,0.00018784,2]
[357007038,1743574232217,-500.0,0.00018784,2]
[357007041,1743574232226,-500.0,0.00018784,2]
[357007044,1743574232235,-500.0,0.00018784,2]
[357007047,1743574232244,-500.0,0.00018784,2]
[357007050,1743574232254,-500.0,0.00018784,2]
[357007053,1743574232264,-500.0,0.00018784,2]
[357007056,1743574232273,-500.0,0.00018784,2]
[357007059,1743574232283,-500.0,0.00018784,2]
[357007061,1743574232292,-500.0,0.00018784,2]
[357007063,1743574232301,-500.0,0.00018784,2]
[357007065,1743574232310,-500.0,0.00018784,2]
[357007067,1743574232321,-500.0,0.00018784,2]
[357007069,1743574232330,-500.0,0.00018784,2]
[357007071,1743574232341,-500.0,0.00018784,2]
[357007073,1743574232353,-500.0,0.00018784,2]
[357007076,1743574232363,-500.0,0.00018784,2]
[357007078,1743574232373,-500.0,0.00018784,2]
[357007080,1743574232381,-500.0,0.00018784,2]
[357007082,1743574232391,-500.0,0.00018784,2]
[357007083,1743574232400,-500.0,0.00018784,2]
[357007085,1743574232409,-499.99999999,0.00018784,2]
[357007088,1743574232419,-500.0,0.00018784,2]
[357007089,1743574232428,-2200.5962817,0.00018785,2]
[357007092,1743574232438,-1375.83700799,0.00019349,2]
[357007094,1743574232447,-500.0,0.00019349,2]
[357007096,1743574232457,-1472.30039551,0.00019682,2]
[357007098,1743574232468,-152.0,0.00019749,2]
[357007100,1743574232477,-419.02799708,0.00019769,2]
[357007102,1743574232487,-500.0,0.00019773,2]
[357007104,1743574232497,-435.35735818,0.00019773,2]
[357007106,1743574232506,-449.15524509,0.00019773,2]
[357007108,1743574232515,-305.18296384,0.00019773,2]
[357007110,1743574232525,-500.0,0.00019773,2]
[357007112,1743574232534,-500.0,0.00019773,2]
[357007114,1743574232543,-424.78335279,0.00019773,2]
[357007116,1743574232552,-501.04305476,0.00019773,2]
[357007118,1743574232562,-510.31475199,0.00019773,2]
[357007120,1743574232571,-500.0,0.00019773,2]
[357007122,1743574232581,-503.44340128,0.00019773,2]
[357007124,1743574232594,-500.0,0.00019773,2]
[357007126,1743574232604,-500.0,0.00019773,2]
[357007128,1743574232613,-500.0,0.00019773,2]
[357007130,1743574232622,-500.0,0.00019773,2]
[357007132,1743574232632,-327.02,0.00019774,3]
[357007134,1743574232642,-200.0,0.00019775,2]
[357007136,1743574232651,-151.0,0.00019775,2]
[357007138,1743574232660,-9395.94,0.0001978,2]
[357007140,1743574232670,-500.0,0.0001978,2]
[357007142,1743574232679,-500.0,0.0001978,2]
[357007144,1743574232689,-500.0,0.0001978,2]
[357007146,1743574232699,-500.0,0.0001978,2]
[357007148,1743574232708,-500.0,0.0001978,2]
[357007150,1743574232717,-3937.53,0.0001978,2]
[357007152,1743574232727,-500.0,0.0001978,2]
[357007154,1743574232737,-580.22570494,0.00019781,2]
[357007156,1743574232747,-206.95238412,0.00019781,2]
[357007158,1743574232756,-500.0,0.00019781,2]
[357007160,1743574232766,-500.0,0.00019781,2]
[357007162,1743574232775,-1327.38,0.00019781,2]
[357007164,1743574232785,-500.0,0.00019781,2]
[357007166,1743574232794,-500.0,0.00019781,2]